bitfinex/quotes_SOLUSD_20250607
["timestamp","ask_amount","ask_price","bid_price","bid_amount"]
[1749285772313,13.3486002,152.47,152.44,10.12]
[1749285772526,18.25843631,152.47,152.44,10.12]
[1749285772711,13.3486002,152.47,152.44,10.12]
[1749285772912,18.25843631,152.47,152.44,10.12]
[1749285773113,13.3486002,152.47,152.44,10.12]
[1749285773313,18.25843631,152.47,152.44,10.12]
[1749285773534,13.3486002,152.47,152.44,10.12]
[1749285773738,18.25843631,152.47,152.44,10.12]
[1749285773913,13.3486002,152.47,152.44,10.12]
[1749285774114,18.25843631,152.47,152.44,10.12]
[1749285774413,13.3486002,152.47,152.44,10.12]
[1749285774745,18.25843631,152.47,152.44,10.12]
[1749285774918,13.3486002,152.47,152.44,10.12]
[1749285775117,18.25843631,152.47,152.44,10.12]
[1749285775324,13.3486002,152.47,152.44,10.12]
[1749285776337,18.25679484,152.47,152.44,10.12]
[1749285776542,13.3486002,152.47,152.44,10.12]
[1749285776718,18.25679484,152.47,152.44,10.12]
[1749285776918,13.3486002,152.47,152.44,10.12]
[1749285777149,18.25679484,152.47,152.44,10.12]
[1749285777327,13.3486002,152.47,152.44,10.12]
[1749285777530,18.25679484,152.47,152.44,10.12]
[1749285777827,13.3486002,152.47,152.44,10.12]
[1749285778028,18.25679484,152.47,152.44,10.12]
[1749285778227,13.3486002,152.47,152.44,10.12]
[1749285778528,18.25679484,152.47,152.44,10.12]
[1749285778734,4.90891515,152.46,152.44,10.12]
[1749285778930,11.468029,152.46,152.44,10.12]
[1749285779632,18.25779929,152.46,152.44,10.12]
[1749285779949,13.34888414,152.46,152.44,10.12]
[1749285780439,18.25779929,152.46,152.44,10.12]
[1749285780623,13.34888414,152.46,152.44,10.12]
[1749285781033,18.25779929,152.46,152.44,10.12]
[1749285781235,13.34888414,152.46,152.44,10.12]
[1749285781649,18.25779929,152.46,152.44,10.12]
[1749285781954,13.34888414,152.46,152.44,10.12]
[1749285782320,18.25779929,152.46,152.44,10.12]
[1749285782647,13.34888414,152.46,152.44,10.12]
[1749285783023,11.468029,152.46,152.44,10.12]
[1749285783239,6.55911385,152.46,152.44,10.12]
[1749285783444,11.468029,152.46,152.44,10.12]
[1749285785749,6.55911385,152.46,152.44,10.12]
[1749285785948,11.46921257,152.46,152.44,10.12]
[1749285788040,6.55911385,152.46,152.44,10.12]
[1749285788239,11.46893066,152.46,152.44,10.12]
[1749285788471,6.55911385,152.46,152.44,10.12]
[1749285788772,11.46937722,152.46,152.44,10.12]
[1749285789581,11.46937722,152.46,152.43,56.60977029]
[1749285789975,11.46937722,152.46,152.43,49.82]
[1749285795078,11.47042589,152.46,152.43,49.82]
[1749285798562,6.55911385,152.46,152.43,49.82]
[1749285798775,11.47193714,152.46,152.43,49.82]
[1749285798976,6.55911385,152.46,152.43,49.82]
[1749285799152,11.47193714,152.46,152.43,49.82]
[1749285799352,11.47234632,152.46,152.43,49.82]
[1749285800466,6.55911385,152.46,152.43,49.82]
[1749285800777,11.47238258,152.46,152.43,49.82]
[1749285801382,6.55911385,152.46,152.43,49.82]
[1749285801697,11.47248384,152.46,152.43,49.82]
[1749285807290,11.47248384,152.46,152.4,26.0]
[1749285807488,4.91336999,152.45,152.43,49.8]
[1749285807666,4.91336999,152.44,152.43,49.8]
[1749285807868,4.91336999,152.45,152.43,49.8]
[1749285808064,4.91336999,152.44,152.43,49.8]
[1749285808274,11.47290886,152.45,152.43,49.8]
[1749285808476,4.91336999,152.44,152.43,49.8]
[1749285810576,11.473328,152.44,152.43,49.8]
[1749285810774,6.55995801,152.44,152.43,49.8]
[1749285811073,11.473328,152.44,152.43,49.8]
[1749285811276,6.55995801,152.44,152.43,49.8]
[1749285811483,11.473328,152.44,152.43,49.8]
[1749285811667,6.55995801,152.44,152.43,49.8]
[1749285811981,11.473328,152.44,152.43,49.8]
[1749285812299,6.55995801,152.44,152.43,49.8]
[1749285812598,11.473328,152.44,152.43,49.8]
[1749285812798,6.55995801,152.44,152.43,49.8]
[1749285813108,4.91336999,152.44,152.43,49.8]
[1749285813282,11.47303135,152.45,152.43,49.8]
[1749285817700,6.55966136,152.45,152.43,49.8]
[1749285818002,11.47303135,152.45,152.43,49.8]
[1749285818390,6.55966136,152.45,152.43,49.8]
[1749285819298,11.47303135,152.45,152.43,49.8]
[1749285821995,6.55966136,152.45,152.43,49.8]
[1749285823541,11.46888534,152.45,152.43,49.8]
[1749285824220,6.55966136,152.45,152.43,49.8]
[1749285824426,11.46905269,152.45,152.43,49.8]
[1749285826742,11.46905269,152.45,152.43,39.68]
[1749285834153,6.55966136,152.45,152.43,39.68]
[1749285834362,11.46920423,152.45,152.43,39.68]
[1749285834659,6.55966136,152.45,152.43,39.68]
[1749285835165,11.46920423,152.45,152.43,39.68]
[1749285836335,6.55966136,152.45,152.43,39.68]
[1749285836744,11.46920423,152.45,152.43,39.68]
[1749285840667,6.55966136,152.45,152.43,39.68]
[1749285840978,11.46943679,152.45,152.43,39.68]
[1749285841166,6.55966136,152.45,152.43,39.68]
[1749285841554,11.46891979,152.45,152.43,39.68]
[1749285841767,11.46921644,152.44,152.43,39.68]
[1749285841929,6.55995801,152.44,152.43,39.68]
[1749285842728,11.46929107,152.44,152.43,39.68]
[1749285842931,6.55995801,152.44,152.43,39.68]
[1749285843132,11.46929107,152.44,152.43,39.68]
[1749285843335,6.55995801,152.44,152.43,39.68]
[1749285843534,11.46929107,152.44,152.43,39.68]
[1749285843740,6.55995801,152.44,152.43,39.68]
[1749285843941,11.46929107,152.44,152.43,39.68]
[1749285844153,6.55995801,152.44,152.43,39.68]
[1749285844455,11.46929107,152.44,152.43,39.68]
[1749285844656,6.55995801,152.44,152.43,39.68]
[1749285844887,11.46929107,152.44,152.43,39.68]
[1749285845083,6.55995801,152.44,152.43,39.68]
[1749285845385,11.46929107,152.44,152.43,39.68]
[1749285845548,6.55995801,152.44,152.43,39.68]
[1749285845750,11.46929107,152.44,152.43,39.68]
[1749285846048,6.55995801,152.44,152.43,39.68]
[1749285846259,11.46929107,152.44,152.43,39.68]
[1749285846462,6.55995801,152.44,152.43,39.68]
[1749285846667,11.46929107,152.44,152.43,39.68]
[1749285846867,6.55995801,152.44,152.43,39.68]
[1749285847083,11.46929107,152.44,152.43,39.68]
[1749285847265,6.55995801,152.44,152.43,39.68]
[1749285847456,11.46929107,152.44,152.43,39.68]
[1749285847780,6.55995801,152.44,152.43,39.68]
[1749285847985,18.25906136,152.44,152.42,10.12]
[1749285848159,11.69910335,152.43,152.42,10.12]
[1749285850083,18.25949172,152.43,152.42,10.12]
[1749285850377,13.35015866,152.43,152.42,10.12]
[1749285850680,18.25949172,152.43,152.42,10.12]
[1749285850868,13.35015866,152.43,152.42,10.12]
[1749285851075,18.25949172,152.43,152.42,10.12]
[1749285851277,13.35015866,152.43,152.42,10.12]
[1749285851473,18.25949172,152.43,152.42,10.12]
[1749285851676,13.35015866,152.43,152.42,10.12]
[1749285851870,18.25949172,152.43,152.42,10.12]
[1749285852072,13.35015866,152.43,152.42,10.12]
[1749285852272,18.25949172,152.43,152.42,10.12]
[1749285852474,13.35015866,152.43,152.42,10.12]
[1749285852674,18.25949172,152.43,152.42,10.12]
[1749285852882,13.35015866,152.43,152.42,10.12]
[1749285853083,18.25949172,152.43,152.42,10.12]
[1749285853274,13.35015866,152.43,152.42,10.12]
[1749285853483,18.25949172,152.43,152.42,10.12]
[1749285853677,13.35015866,152.43,152.42,10.12]
[1749285853872,18.25949172,152.43,152.42,10.12]
[1749285854175,13.35015866,152.43,152.42,10.12]
[1749285854375,18.25949172,152.43,152.42,10.12]
[1749285854576,13.35015866,152.43,152.42,10.12]
[1749285854777,18.25949172,152.43,152.42,10.12]
[1749285854977,13.35015866,152.43,152.42,10.12]
[1749285855178,18.25949172,152.43,152.42,10.12]
[1749285855487,13.35015866,152.43,152.4,39.68]
[1749285855788,18.25949172,152.43,152.4,39.68]
[1749285855978,13.35015866,152.43,152.4,39.68]
[1749285856180,18.25949172,152.43,152.39,56.58977029]
[1749285856385,13.35015866,152.43,152.39,56.58977029]
[1749285856585,18.25949172,152.43,152.39,56.58977029]
[1749285856788,13.35015866,152.43,152.39,56.58977029]
[1749285856979,18.25949172,152.43,152.39,56.58977029]
[1749285857183,13.35015866,152.43,152.39,56.58977029]
[1749285857488,6.78977029,152.42,152.39,49.8]
[1749285857894,6.56124926,152.41,152.39,49.8]
[1749285858071,6.56124926,152.41,152.39,10.12]
[1749285858390,6.56124926,152.41,152.39,49.8]
[1749285859999,6.56124926,152.41,152.39,10.12]
[1749285868502,6.78977029,152.41,152.39,10.12]
[1749285869799,13.35110913,152.41,152.39,10.12]
[1749285870691,6.78977029,152.41,152.39,10.12]
[1749285871190,13.35108822,152.41,152.39,10.12]
[1749285872010,6.56131793,152.41,152.39,10.12]
[1749285872393,13.35097893,152.42,152.39,10.12]
[1749285875185,6.78977029,152.41,152.39,10.12]
[1749285875581,13.35106837,152.41,152.39,10.12]
[1749285877181,13.35058908,152.42,152.39,10.12]
[1749285879414,13.35058908,152.42,152.38,6.78977029]
[1749285880802,6.78977029,152.41,152.38,6.78977029]
[1749285881811,6.78977029,152.41,152.37,56.58977029]
[1749285882727,6.56167979,152.4,152.37,56.58977029]
[1749285885028,6.56167979,152.4,152.37,49.8]
[1749285885327,6.56167979,152.4,152.37,56.58977029]
[1749285886302,6.56167979,152.4,152.37,16.90977029]
[1749285894537,13.35145008,152.4,152.37,10.12]
[1749285894719,6.78977029,152.39,152.37,10.12]
[1749285896429,6.56254101,152.38,152.37,10.12]
[1749285897354,13.3523113,152.38,152.37,10.12]
[1749285899229,13.3523113,152.38,152.34,72.46977029]
[1749285899430,13.3523113,152.38,152.34,46.46977029]
[1749285901843,6.56254101,152.38,152.34,46.46977029]
[1749285902642,6.56254101,152.38,152.34,6.78977029]
[1749285902947,6.56254101,152.38,152.35,39.68]
[1749285903517,6.56254101,152.38,152.35,46.46977029]
[1749285904126,6.56254101,152.38,152.35,56.58977029]
[1749285905444,18.04568144,152.41,152.35,56.58977029]
[1749285905445,6.78977029,152.4,152.35,56.58977029]
[1749285906521,13.35156352,152.4,152.35,56.58977029]
[1749285906722,8.43157029,152.41,152.37,6.78977029]
[1749285907640,1.6418,152.41,152.38,6.78977029]
[1749285907844,13.35066333,152.42,152.38,6.78977029]
[1749285907845,6.56089304,152.42,152.38,6.78977029]
[1749285908037,13.35066333,152.42,152.38,6.78977029]
[1749285909937,4.90700734,152.44,152.4,6.78977029]
[1749285910143,8.33237029,152.45,152.41,6.78977029]
[1749285910440,8.33237029,152.45,152.4,49.8]
[1749285910441,6.78977029,152.44,152.4,56.58977029]
[1749285911030,14.89223456,152.45,152.41,6.78977029]
[1749285911346,13.34831836,152.48,152.44,6.78977029]
[1749285911546,13.34831836,152.48,152.44,46.46977029]
[1749285917764,6.55854807,152.48,152.45,6.78977029]
[1749285920276,8.33237029,152.49,152.45,6.78977029]
[1749285920469,1.5426,152.49,152.46,6.78977029]
[1749285920677,64.53432324,152.51,152.44,46.23986845]
[1749285920678,72.99604535,152.51,152.47,6.78977029]
[1749285921886,46.99604535,152.51,152.47,6.78977029]
[1749285924685,46.99604535,152.51,152.46,6.78977029]
[1749285925659,40.20627506,152.51,152.47,6.78977029]
[1749285925949,46.99604535,152.51,152.47,6.78977029]
[1749285927158,33.64921411,152.51,152.47,6.78977029]
[1749285927375,33.64921411,152.51,152.49,6.78977029]
[1749285928912,7.85664612,152.52,152.49,6.78977029]
[1749285934282,1.30001002,152.52,152.51,6.78977029]
[1749285937192,1.30001002,152.52,152.51,13.34671737]
[1749285945526,1.30001002,152.52,152.51,39.34671737]
[1749285945712,1.30001002,152.52,152.51,58.28068937]
[1749285951327,6.4017,152.6,152.55,26.0]
[1749285951506,6.4017,152.6,152.57,6.78977029]
[1749285952344,19.74471561,152.6,152.56,56.50977029]
[1749285952545,19.74471561,152.6,152.56,49.72]
[1749285953130,19.74471561,152.6,152.56,56.50977029]
[1749285958457,12.95494532,152.6,152.56,56.50977029]
[1749285958652,19.74471561,152.6,152.56,56.50977029]
[1749285959252,6.78977029,152.57,152.56,49.72]
[1749285959558,6.78977029,152.57,152.56,39.62]
[1749285960361,13.34413877,152.57,152.56,39.62]
[1749285960736,13.34413877,152.57,152.54,39.62]
[1749285962866,13.34413877,152.57,152.53,16.88977029]
[1749285963161,6.78977029,152.54,152.53,10.1]
[1749285963338,6.78977029,152.54,152.49,16.88977029]
[1749285963538,6.78977029,152.53,152.5,39.62]
[1749285964353,6.55651717,152.52,152.5,39.62]
[1749285966848,6.55651717,152.52,152.49,49.72]
[1749285967049,13.34628746,152.52,152.49,10.1]
[1749285967243,6.78977029,152.5,152.49,10.1]
[1749285967451,6.78977029,152.5,152.46,37.78]
[1749285967660,6.78977029,152.47,152.45,10.1]
[1749285968150,6.78977029,152.46,152.45,10.1]
[1749285968554,1.6055,152.48,152.45,16.88977029]
[1749285968873,8.16411864,152.48,152.45,10.1]
[1749285969254,1.6055,152.48,152.45,16.88977029]
[1749285969947,8.39527029,152.48,152.45,10.1]
[1749285970350,14.95363276,152.48,152.45,10.1]
[1749285971257,18.76981984,152.48,152.45,10.1]
[1749285974472,1.5032,152.45,152.28,39.0051352]
[1749285974648,10.60595737,152.33,152.28,19.0051352]
[1749285974847,23.86590256,152.37,152.28,24.33032272]
[1749285975048,23.86590256,152.37,152.22,3.20466915]
[1749285975049,3.419,152.32,152.18,35.0]
[1749285975248,3.419,152.32,152.1,16.29981963]
[1749285975249,26.0,152.27,152.1,0.44951649]
[1749285975449,26.0779,152.3,152.11,27.0227333]
[1749285975450,0.14216157,152.26,152.11,27.0227333]
[1749285975664,6.0779,152.3,152.19,10.60595737]
[1749285975665,26.0,152.27,152.19,10.60595737]
[1749285975868,10.60595737,152.26,152.18,26.0]
[1749285976078,10.60595737,152.25,152.2,10.60595737]
[1749285976571,10.60595737,152.26,152.2,21.16595737]
[1749285976757,26.0,152.27,152.22,10.60595737]
[1749285976758,10.60595737,152.27,152.22,10.60595737]
[1749285976952,10.60595737,152.28,152.23,10.60595737]
[1749285977274,10.60595737,152.26,152.21,10.60595737]
[1749285977582,10.60595737,152.3,152.24,10.60595737]
[1749285978070,27.6553,152.31,152.26,10.60595737]
[1749285978370,27.6553,152.31,152.27,10.60595737]
[1749285979150,27.6553,152.31,152.26,10.60595737]
[1749285979565,27.6553,152.31,152.27,10.60595737]
[1749285980080,3.419,152.32,152.3,10.60595737]
[1749285980249,3.419,152.32,152.31,10.60595737]
[1749285980449,3.419,152.32,152.31,17.17151445]
[1749285981372,10.60595737,152.37,152.31,17.17151445]
[1749285981569,10.60595737,152.37,152.32,10.60595737]
[1749285981758,10.60595737,152.37,152.31,17.17151445]
[1749285982183,10.60595737,152.37,152.32,10.60595737]
[1749285984477,10.60595737,152.37,152.33,6.56469506]
[1749285984651,84.07901314,152.4,152.33,6.56469506]
[1749285984858,10.60595737,152.37,152.33,6.56469506]
[1749285985062,10.60595737,152.38,152.33,6.56469506]
[1749285985477,10.60595737,152.39,152.33,6.56469506]
[1749285985883,10.60595737,152.39,152.32,32.56512605]
[1749285988190,10.60595737,152.38,152.32,32.56512605]
[1749285991206,10.60595737,152.38,152.32,43.17108342]
[1749285991393,10.60595737,152.37,152.32,32.56512605]
[1749285991700,10.60595737,152.35,152.34,25.6581]
[1749285991901,10.60595737,152.36,152.34,25.6581]
[1749285992676,10.60595737,152.36,152.32,17.17108342]
[1749285992986,10.60595737,152.37,152.32,17.17108342]
[1749285993701,10.60595737,152.37,152.33,26.0]
[1749285994074,10.60595737,152.38,152.33,36.60595737]
[1749285995615,10.60595737,152.38,152.32,17.17108342]
[1749285997021,6.56211037,152.39,152.32,17.17108342]
[1749285997342,10.60595737,152.38,152.34,10.60595737]
[1749285998245,10.60595737,152.38,152.34,17.17001792]
[1749285998640,10.60595737,152.38,152.34,14.09291792]
[1749286000145,10.60595737,152.39,152.34,14.09291792]
[1749286000531,10.60595737,152.38,152.34,7.52885737]
[1749286000840,10.60595737,152.38,152.33,6.56456248]
[1749286000841,10.60595737,152.38,152.33,17.17051985]
[1749286001042,10.60595737,152.38,152.34,10.60595737]
[1749286001430,13.0643387,152.4,152.34,10.60595737]
[1749286001431,10.60595737,152.39,152.34,10.60595737]
[1749286001630,10.60595737,152.39,152.35,10.60595737]
[1749286002018,10.60595737,152.4,152.36,10.60595737]
[1749286002222,18.80172243,152.41,152.37,10.60595737]
[1749286002645,1.6342,152.41,152.37,10.60595737]
[1749286003040,18.80142176,152.41,152.37,10.60595737]
[1749286003242,18.80142176,152.41,152.35,10.56]
[1749286003243,18.80142176,152.41,152.36,10.60595737]
[1749286004337,10.60595737,152.4,152.36,10.60595737]
[1749286004971,17.16803184,152.4,152.36,10.60595737]
[1749286005463,17.16803184,152.4,152.35,21.16595737]
[1749286005641,10.60595737,152.38,152.35,10.56]
[1749286006359,10.60595737,152.39,152.35,21.16595737]
[1749286006938,6.56254101,152.38,152.35,21.16595737]
[1749286009340,6.56211037,152.39,152.35,21.16595737]
[1749286010861,17.16806774,152.39,152.35,10.56]
[1749286011064,10.60595737,152.36,152.35,10.56]
[1749286011247,10.60595737,152.36,152.3,10.60595737]
[1749286011248,10.60595737,152.36,152.31,50.82]
[1749286011452,10.60595737,152.36,152.31,61.42595737]
[1749286011865,10.60595737,152.36,152.32,10.60595737]
[1749286012443,22.9673863,152.39,152.33,10.60595737]
[1749286012444,10.60595737,152.37,152.33,10.60595737]
[1749286013541,6.56340246,152.36,152.33,10.60595737]
[1749286013737,6.56340246,152.36,152.32,10.60595737]
[1749286014970,6.56340246,152.36,152.32,50.94595737]
[1749286017974,6.56340246,152.36,152.32,40.34]
[1749286018753,6.56340246,152.36,152.32,50.94595737]
[1749286019872,10.60595737,152.38,152.32,50.94595737]
[1749286021477,10.60595737,152.35,152.31,10.5]
[1749286021776,18.79181043,152.37,152.31,50.78]
[1749286021777,10.60595737,152.33,152.31,50.78]
[1749286022270,6.56512605,152.32,152.31,50.78]
[1749286022449,6.56512605,152.32,152.31,10.5]
[1749286025385,6.56512605,152.32,152.27,26.0]
[1749286025386,17.17108342,152.32,152.27,10.5]
[1749286025548,10.60595737,152.28,152.27,10.5]
[1749286025965,17.1728079,152.28,152.27,10.5]
[1749286026764,10.60595737,152.28,152.27,10.5]
[1749286027684,10.60595737,152.29,152.27,10.5]
[1749286030481,17.17215881,152.3,152.27,10.5]
[1749286030887,4.83529275,152.33,152.28,10.60595737]
[1749286031087,10.60595737,152.33,152.28,10.60595737]
[1749286031270,10.60595737,152.32,152.28,10.60595737]
[1749286031465,10.60595737,152.32,152.27,21.10595737]
[1749286031878,10.60595737,152.31,152.27,10.5]
[1749286032253,17.17165934,152.31,152.27,10.5]
[1749286032459,10.60595737,152.29,152.27,10.5]
[1749286033096,10.60595737,152.28,152.24,37.82]
[1749286033322,10.60595737,152.26,152.24,37.82]
[1749286033499,10.60595737,152.26,152.23,50.78]
[1749286033817,10.60595737,152.27,152.23,10.5]
[1749286034122,10.60595737,152.27,152.23,61.38595737]
[1749286034821,10.60595737,152.27,152.23,50.78]
[1749286035028,17.17325464,152.27,152.23,50.78]
[1749286035321,17.17325464,152.27,152.23,61.38595737]
[1749286035704,17.17325464,152.27,152.23,21.10595737]
[1749286035903,17.17325464,152.27,152.23,61.38595737]
[1749286036119,6.56729727,152.27,152.23,61.38595737]
[1749286037339,17.17325464,152.27,152.23,50.78]
[1749286037551,17.17325464,152.27,152.23,50.76]
[1749286037911,17.17325464,152.27,152.23,10.5]
[1749286038110,10.60595737,152.26,152.23,10.5]
[1749286038628,10.60595737,152.25,152.23,10.5]
[1749286039626,17.17421948,152.25,152.23,10.5]
[1749286045716,10.60595737,152.24,152.2,50.84595737]
[1749286045921,17.17421948,152.25,152.2,50.84595737]
[1749286046142,17.17421948,152.25,152.21,10.60595737]
[1749286047411,6.56826211,152.25,152.21,10.60595737]
[1749286047640,10.60595737,152.25,152.19,10.44]
[1749286047839,22.98699592,152.26,152.19,10.44]
[1749286047840,10.60595737,152.22,152.19,10.44]
[1749286048038,10.60595737,152.21,152.19,10.44]
[1749286048951,10.60595737,152.2,152.19,10.44]
[1749286049447,10.60595737,152.2,152.15,32.5723494]
[1749286049448,10.60595737,152.2,152.15,21.04595737]
[1749286049649,17.1767916,152.19,152.15,10.44]
[1749286049941,10.60595737,152.18,152.15,10.44]
[1749286050122,10.60595737,152.19,152.15,21.04595737]
[1749286051344,10.60595737,152.19,152.15,27.61832633]
[1749286053127,10.60595737,152.2,152.16,10.60595737]
[1749286053321,8.14917693,152.22,152.17,10.60595737]
[1749286053322,18.7551343,152.22,152.17,10.60595737]
[1749286054550,10.60595737,152.2,152.16,17.17796329]
[1749286055249,10.60595737,152.2,152.16,10.60595737]
[1749286055749,10.60595737,152.21,152.16,10.60595737]
[1749286056553,17.17585093,152.21,152.16,17.17788849]
[1749286056750,17.17585093,152.21,152.16,10.60595737]
[1749286057459,17.17585093,152.21,152.16,17.17786966]
[1749286057840,17.17585093,152.21,152.16,10.60595737]
[1749286058157,17.17585093,152.21,152.15,17.01232831]
[1749286058349,17.17585093,152.21,152.16,10.60595737]
[1749286059153,10.60595737,152.21,152.17,10.60595737]
[1749286060859,10.60595737,152.2,152.16,17.17775832]
[1749286061751,10.60595737,152.2,152.16,10.60595737]
[1749286061952,10.60595737,152.2,152.15,27.61826272]
[1749286062584,10.60595737,152.2,152.16,40.22]
[1749286062863,6.57050873,152.2,152.16,40.22]
[1749286063038,10.60595737,152.19,152.16,40.22]
[1749286063643,17.1764661,152.2,152.16,50.82595737]
[1749286064749,10.60595737,152.19,152.16,40.22]
[1749286065560,10.60595737,152.21,152.17,10.60595737]
[1749286065939,8.14892719,152.22,152.16,50.82595737]
[1749286066257,12.18535737,152.22,152.18,10.60595737]
[1749286066665,10.60595737,152.21,152.17,10.60595737]
[1749286066841,10.60595737,152.21,152.16,50.82595737]
[1749286067169,18.75493407,152.22,152.17,10.60595737]
[1749286067864,32.4955,152.24,152.19,10.60595737]
[1749286067865,6.56907752,152.23,152.19,10.60595737]
[1749286068367,17.17503489,152.23,152.19,10.60595737]
[1749286068747,17.17503489,152.23,152.18,10.60595737]
[1749286068952,17.17503489,152.23,152.17,6.57152885]
[1749286069147,10.60595737,152.22,152.17,10.60595737]
[1749286070165,10.60595737,152.2,152.16,50.82595737]
[1749286070470,10.60595737,152.19,152.16,40.22]
[1749286070851,10.60595737,152.19,152.15,10.44]
[1749286071162,10.60595737,152.18,152.15,50.66]
[1749286071545,17.17713011,152.18,152.15,50.66]
[1749286071949,17.17713011,152.18,152.15,10.44]
[1749286073272,17.17680499,152.19,152.15,21.04595737]
[1749286080679,10.60595737,152.17,152.15,10.44]
[1749286080978,17.17784932,152.17,152.15,10.44]
[1749286081284,6.57189195,152.17,152.15,10.44]
[1749286083153,17.17784932,152.17,152.15,10.44]
[1749286084273,17.17723955,152.18,152.15,10.44]
[1749286086381,10.60595737,152.18,152.15,10.44]
[1749286087268,17.1772324,152.18,152.15,10.44]
[1749286088165,6.57127503,152.18,152.15,10.44]
[1749286089174,6.57073395,152.19,152.15,10.44]
[1749286089372,10.60595737,152.18,152.15,10.44]
[1749286089683,17.17669132,152.19,152.15,10.44]
[1749286090584,17.17669132,152.19,152.15,21.04595737]
[1749286092190,17.17669132,152.19,152.15,10.44]
[1749286093289,10.60595737,152.18,152.15,10.44]
[1749286093587,10.60595737,152.17,152.15,10.44]
[1749286093768,10.60595737,152.17,152.13,40.14]
[1749286093967,10.60595737,152.16,152.13,40.14]
[1749286095385,17.17818574,152.16,152.13,40.14]
[1749286095769,6.57116572,152.18,152.13,50.74595737]
[1749286095978,17.17712309,152.18,152.14,10.60595737]
[1749286096174,10.60595737,152.17,152.13,50.74595737]
[1749286097570,17.17771669,152.17,152.13,50.74595737]
[1749286098374,10.60595737,152.17,152.13,10.60595737]
[1749286098882,10.60595737,152.17,152.13,17.17921513]
[1749286099572,10.60595737,152.18,152.14,17.17880634]
[1749286099792,10.60595737,152.19,152.14,17.17880634]
[1749286100117,17.17671837,152.19,152.14,43.17880634]
[1749286101574,17.17671837,152.19,152.14,36.60595737]
[1749286102200,17.17671837,152.19,152.14,17.17874407]
[1749286102702,17.17671837,152.19,152.14,10.60595737]
[1749286102890,10.60595737,152.18,152.14,10.60595737]
[1749286104584,17.17744762,152.18,152.14,10.60595737]
[1749286111006,17.17744762,152.18,152.13,10.60595737]
[1749286111908,10.60595737,152.17,152.12,50.74595737]
[1749286112708,6.57202944,152.16,152.12,50.74595737]
[1749286117012,10.60595737,152.14,152.11,10.42]
[1749286117309,6.81969026,152.13,152.11,10.42]
[1749286117495,6.81969026,152.13,152.09,46.87969026]
[1749286118017,13.39324851,152.13,152.09,46.87969026]
[1749286119412,13.39324851,152.13,152.09,40.06]
[1749286119413,6.81969026,152.12,152.09,40.06]
[1749286119616,6.81969026,152.11,152.08,40.06]
[1749286119792,6.81969026,152.11,152.07,50.42]
[1749286119987,13.39396073,152.11,152.07,17.17969026]
[1749286121301,10.65888766,152.1,152.07,10.36]
[1749286121699,17.23315813,152.11,152.07,21.01888766]
[1749286121895,41.51366964,152.15,152.1,10.65888766]
[1749286122096,6.57329443,152.14,152.1,50.71888766]
[1749286122297,43.23149837,152.15,152.11,10.65888766]
[1749286123918,4.85478198,152.16,152.11,10.65888766]
[1749286123919,22.08586576,152.16,152.11,10.65888766]
[1749286124109,17.23108378,152.16,152.11,10.65888766]
[1749286125705,10.65888766,152.15,152.11,10.65888766]
[1749286126906,17.23137559,152.15,152.11,10.65888766]
[1749286127613,10.65888766,152.15,152.11,10.65888766]
[1749286128216,17.23138289,152.15,152.11,10.65888766]
[1749286129312,17.23138289,152.15,152.1,50.71888766]
[1749286129722,17.23138289,152.15,152.1,57.29332914]
[1749286130421,17.23138289,152.15,152.1,50.71888766]
[1749286130915,17.23138289,152.15,152.1,40.06]
[1749286131096,17.23138289,152.15,152.1,46.63456794]
[1749286131299,17.23138289,152.15,152.11,10.65888766]
[1749286132392,36.65888766,152.16,152.12,10.65888766]
[1749286132590,26.0,152.16,152.12,10.65888766]
[1749286132803,43.23104297,152.16,152.12,10.65888766]
[1749286133407,18.84839454,152.18,152.14,10.65888766]
[1749286133605,10.65888766,152.17,152.13,10.65888766]
[1749286134422,17.2305583,152.17,152.13,10.65888766]
[1749286135095,17.2305583,152.17,152.11,6.57407746]
[1749286135301,17.2305583,152.17,152.12,10.65888766]
[1749286135606,10.65888766,152.16,152.12,10.65888766]
[1749286136706,6.57246138,152.15,152.12,10.65888766]
[1749286138323,6.57214597,152.16,152.12,10.65888766]
[1749286138526,4.85478198,152.19,152.15,10.65888766]